bitfinex/quotes_ETHUSD_20250605
["timestamp","ask_amount","ask_price","bid_price","bid_amount"]
[1749152304884,1.8439,2549.6,2549.5,16.0]
[1749152305035,1.8439,2549.6,2549.5,19.92233771]
[1749152305238,19.08159736,2549.7,2549.6,3.92218387]
[1749152305435,19.63159736,2549.7,2549.6,3.92218387]
[1749152306771,0.55,2549.6,2549.5,19.92226716]
[1749152306990,0.55,2549.4,2549.2,3.92269185]
[1749152307299,7.867,2549.3,2549.2,19.9227993]
[1749152309168,12.58859736,2549.4,2549.3,19.92264543]
[1749152309370,20.45259736,2549.4,2549.3,19.92264543]
[1749152310367,20.45059736,2549.4,2549.3,19.92264543]
[1749152310735,11.20659736,2549.7,2549.6,19.92218387]
[1749152310935,19.06659736,2549.7,2549.6,19.92218387]
[1749152311273,1.2,2549.7,2549.6,19.92218387]
[1749152311444,1.2,2549.7,2549.6,22.69888211]
[1749152311634,1.2,2549.7,2549.6,24.10208211]
[1749152311835,6.5298,2549.9,2549.8,19.92187622]
[1749152312235,14.3878,2549.9,2549.8,19.92187622]
[1749152312945,14.3868,2549.9,2549.8,19.92187622]
[1749152313164,6.5298,2549.9,2549.8,23.11647197]
[1749152313365,14.3868,2549.9,2549.8,23.11647197]
[1749152313670,14.3858,2549.9,2549.8,23.11647197]
[1749152314686,6.5298,2549.9,2549.8,24.51007197]
[1749152315182,14.3828,2549.9,2549.8,24.51007197]
[1749152316186,14.3828,2549.9,2549.8,21.31547622]
[1749152317342,14.3828,2549.9,2549.8,19.92187622]
[1749152319667,14.3828,2549.9,2549.6,3.92213617]
[1749152319869,10.00659736,2549.8,2549.7,3.92203004]
[1749152320357,14.3828,2549.9,2549.8,3.92187622]
[1749152320560,6.5298,2549.9,2549.8,3.92187622]
[1749152320863,6.5298,2549.9,2549.8,22.49798229]
[1749152321257,14.3718,2549.9,2549.8,22.49798229]
[1749152321692,14.3708,2549.9,2549.8,22.49798229]
[1749152322258,6.5298,2549.9,2549.8,22.49798229]
[1749152322461,14.3698,2549.9,2549.8,22.49798229]
[1749152322702,14.3688,2549.9,2549.8,22.49798229]
[1749152324201,6.5298,2549.9,2549.8,22.49798229]
[1749152324512,14.3658,2549.9,2549.8,22.49798229]
[1749152325912,14.3628,2549.9,2549.8,22.49798229]
[1749152326263,14.3628,2549.9,2549.8,21.32137622]
[1749152326712,14.3628,2549.9,2549.8,5.32137622]
[1749152327077,14.3628,2549.9,2549.8,3.92187622]
[1749152327899,14.71960346,2549.9,2549.8,3.92187622]
[1749152328068,14.3628,2549.9,2549.8,19.92187622]
[1749152328918,24.72648881,2549.9,2549.8,19.92187622]
[1749152329208,14.7199022,2549.9,2549.8,19.92187622]
[1749152329371,14.3628,2549.9,2549.8,19.92187622]
[1749152329569,14.72003497,2549.9,2549.8,19.92187622]
[1749152329888,14.3628,2549.9,2549.8,19.92187622]
[1749152330074,14.72003879,2549.9,2549.8,19.92187622]
[1749152330274,14.3628,2549.9,2549.8,19.92187622]
[1749152330479,14.72003479,2549.9,2549.8,19.92187622]
[1749152330693,14.72004016,2549.9,2549.8,19.92187622]
[1749152331077,6.88704016,2549.9,2549.8,19.92187622]
[1749152331268,14.71108549,2549.9,2549.8,22.30626685]
[1749152331468,14.3538,2549.9,2549.8,22.30626685]
[1749152332202,14.3538,2549.9,2549.8,19.92187622]
[1749152332550,24.71769504,2549.9,2549.8,16.0]
[1749152332694,0.55,2549.8,2548.8,1.3983]
[1749152333013,10.00659736,2549.2,2548.3,5.32248475]
[1749152333210,7.821,2549.1,2549.0,3.9231071]
[1749152333412,8.17824435,2549.1,2549.0,19.9231071]
[1749152333572,8.371,2549.1,2549.0,19.9231071]
[1749152333982,8.72822928,2549.1,2549.0,19.9231071]
[1749152334302,0.35720944,2549.1,2549.0,19.9231071]
[1749152334505,0.35720944,2549.1,2549.0,3.9231071]
[1749152334506,8.17620944,2549.1,2549.0,3.9231071]
[1749152334680,9.85373038,2549.1,2549.0,19.9231071]
[1749152334879,9.85343209,2549.1,2549.0,19.9231071]
[1749152335121,11.97599736,2549.4,2549.3,3.92264543]
[1749152335315,22.34399736,2549.4,2549.3,3.92264543]
[1749152335524,22.70955035,2549.4,2549.3,3.92264543]
[1749152335720,23.06547361,2549.4,2549.3,3.92264543]
[1749152335893,22.69992062,2549.4,2549.3,3.92264543]
[1749152336225,23.0568504,2549.4,2549.3,3.92264543]
[1749152336434,23.0568504,2549.4,2549.3,19.92264543]
[1749152336435,0.71385304,2549.4,2549.3,19.92264543]
[1749152336614,8.17392326,2549.4,2549.3,19.92264543]
[1749152336987,19.58842062,2549.4,2549.3,19.92264543]
[1749152337530,9.93874505,2549.4,2549.3,19.92264543]
[1749152337724,8.53084949,2549.4,2549.3,19.92264543]
[1749152338095,8.17392326,2549.4,2549.3,19.92264543]
[1749152338709,8.16992326,2549.4,2549.3,19.92264543]
[1749152339990,8.71992326,2549.4,2549.3,19.92264543]
[1749152340184,8.71992326,2549.4,2549.3,3.92264543]
[1749152340427,0.35692326,2549.4,2549.3,19.92264543]
[1749152340610,8.52408812,2549.4,2549.3,19.92264543]
[1749152340803,8.52409999,2549.4,2549.3,19.92264543]
[1749152341001,8.52409677,2549.4,2549.3,19.92264543]
[1749152341416,8.16692326,2549.4,2549.3,19.92264543]
[1749152341613,0.35692326,2549.4,2549.3,19.92264543]
[1749152341986,8.16592326,2549.4,2549.3,19.92264543]
[1749152343793,8.16292326,2549.4,2549.3,19.92264543]
[1749152344233,19.53581295,2549.4,2549.3,16.0]
[1749152344556,1.72321559,2549.4,2549.3,19.92264543]
[1749152344843,8.16092326,2549.4,2549.3,19.92264543]
[1749152345398,6.5298,2549.9,2549.8,5.32517622]
[1749152345600,14.3328,2549.9,2549.8,22.24989407]
[1749152346136,14.3318,2549.9,2549.8,22.24989407]
[1749152347402,14.3318,2549.9,2549.8,21.32517622]
[1749152347649,14.3288,2549.9,2549.8,21.32517622]
[1749152348295,6.5298,2549.9,2549.8,21.32517622]
[1749152348460,14.3278,2549.9,2549.8,21.71936171]
[1749152349396,6.5298,2549.9,2549.8,21.71936171]
[1749152349549,6.5298,2549.9,2549.8,24.28349811]
[1749152349744,1.29787631,2550.5,2550.4,21.33565357]
[1749152349941,9.09287631,2550.5,2550.4,21.33565357]
[1749152350364,9.09287631,2550.5,2550.4,19.92095357]
[1749152351364,1.29787631,2550.5,2550.4,19.92095357]
[1749152351590,9.08987631,2550.5,2550.4,19.92095357]
[1749152354102,11.54952368,2550.5,2550.4,16.0]
[1749152354399,0.55,2550.4,2550.3,3.92110732]
[1749152354554,10.55659736,2550.4,2550.3,19.92110732]
[1749152354748,10.55659736,2550.4,2550.3,16.0]
[1749152354963,10.55659736,2550.4,2549.8,3.92174901]
[1749152355175,10.55659736,2550.1,2550.0,3.92156862]
[1749152355385,22.23749736,2550.1,2550.0,19.92156862]
[1749152356857,1.2,2550.3,2550.2,3.92126107]
[1749152357059,10.881,2550.3,2550.2,19.92126107]
[1749152358553,10.879,2550.3,2550.2,19.92126107]
[1749152358748,1.29787631,2550.5,2550.2,19.92126107]
[1749152358949,1.29787631,2550.5,2550.4,19.92095357]
[1749152359287,9.07787631,2550.5,2550.4,19.92095357]
[1749152360054,9.07687631,2550.5,2550.4,19.92095357]
[1749152360665,9.07587631,2550.5,2550.4,19.92095357]
[1749152361176,1.29787631,2550.5,2550.4,19.92095357]
[1749152361347,9.07487631,2550.5,2550.4,19.92095357]
[1749152361548,1.29787631,2550.5,2550.4,19.92095357]
[1749152361749,1.29787631,2550.5,2550.4,22.82866287]
[1749152361986,9.07287631,2550.5,2550.4,24.25326287]
[1749152362740,0.02,2550.9,2550.8,5.33823871]
[1749152362899,7.794,2550.9,2550.8,22.26410908]
[1749152363190,0.02,2550.9,2550.8,22.26410908]
[1749152363564,7.793,2550.9,2550.8,22.26410908]
[1749152364193,0.02,2550.9,2550.8,22.26410908]
[1749152364395,7.792,2550.9,2550.8,22.26410908]
[1749152365586,0.02,2550.9,2550.8,22.26410908]
[1749152365786,7.789,2550.9,2550.8,22.26410908]
[1749152366592,0.02,2550.9,2550.8,22.26410908]
[1749152366796,7.787,2550.9,2550.8,22.26410908]
[1749152367472,7.786,2550.9,2550.8,22.26410908]
[1749152367669,2.73109244,2551.3,2551.2,3.91972405]
[1749152367909,10.49609244,2551.3,2551.2,22.08179959]
[1749152369476,2.73109244,2551.3,2551.2,22.08179959]
[1749152369668,10.49309244,2551.3,2551.2,22.08179959]
[1749152369866,10.49309244,2551.3,2551.2,19.91972405]
[1749152370372,10.49209244,2551.3,2551.2,19.91972405]
[1749152376112,12.34429244,2551.3,2551.2,19.91972405]
[1749152376414,12.34429244,2551.3,2551.2,3.91972405]
[1749152376912,12.34429244,2551.3,2551.2,19.91972405]
[1749152377079,11.79429244,2551.3,2551.2,19.91972405]
[1749152377280,10.49209244,2551.3,2551.2,19.91972405]
[1749152378422,10.47809244,2551.3,2551.2,19.91972405]
[1749152380815,11.02809244,2551.3,2551.2,19.91972405]
[1749152380988,12.77283568,2551.3,2551.2,19.91972405]
[1749152381392,1.9274,2551.1,2551.0,3.91988472]
[1749152381611,1.9274,2551.1,2550.1,3.92137909]
[1749152381612,0.55,2551.0,2550.1,3.92137909]
[1749152381784,0.55,2551.0,2550.9,19.92018503]
[1749152382121,19.11019752,2551.0,2550.9,19.92018503]
[1749152384524,1.8793,2550.9,2550.8,3.92033871]
[1749152384732,2.60323008,2550.9,2550.8,3.92033871]
[1749152384936,2.24604434,2550.9,2550.8,3.92033871]
[1749152385145,11.88589736,2550.9,2550.8,3.92033871]
[1749152385446,19.62289736,2550.9,2550.8,3.92033871]
[1749152385933,19.9794885,2550.9,2550.8,3.92033871]
[1749152386292,0.55,2550.8,2550.7,19.92040878]
[1749152386493,0.90759139,2550.8,2550.7,3.92049241]
[1749152386938,0.90758707,2550.8,2550.7,3.92049241]
[1749152387140,0.55,2550.8,2550.7,3.92049241]
[1749152387636,0.55,2550.8,2550.5,3.920675]
[1749152387806,10.55659736,2550.6,2550.5,16.0]
[1749152388005,20.80559736,2550.6,2550.3,3.92100714]
[1749152388220,1.9732,2550.4,2550.3,3.92107451]
[1749152388513,9.7062,2550.4,2550.3,3.92107451]
[1749152389907,9.7062,2550.4,2549.4,1.4093]
[1749152390111,10.55659736,2549.8,2549.7,3.92203004]
[1749152390338,18.28659736,2549.8,2549.7,3.92203004]
[1749152391637,18.28659736,2549.8,2549.6,19.92210401]
[1749152391943,18.28659736,2549.8,2549.5,3.92225341]
[1749152392158,18.28659736,2549.8,2549.4,3.92237059]
[1749152392447,0.55,2549.7,2549.6,19.92208616]
[1749152392647,0.55,2549.7,2549.1,0.02]
[1749152392799,0.55,2549.5,2549.1,3.94284966]
[1749152392998,7.727,2549.4,2549.2,3.92265185]
[1749152393239,8.277,2549.4,2549.3,19.92264543]
[1749152393601,10.55659736,2549.4,2549.3,19.92264543]
[1749152393805,18.28259736,2549.4,2549.3,19.92264543]
[1749152394007,7.726,2549.4,2549.3,19.92264543]
[1749152394217,10.55659736,2549.7,2549.4,3.92246904]
[1749152394415,10.55659736,2549.7,2549.6,3.92218387]
[1749152394615,18.28159736,2549.7,2549.6,3.92218387]
[1749152395101,10.55659736,2549.7,2549.6,3.92218387]
[1749152395307,0.55,2549.6,2549.4,19.92249156]
[1749152395517,0.55,2549.6,2549.5,3.9223144]
[1749152395839,7.725,2549.7,2549.6,3.92218387]
[1749152396044,8.275,2549.7,2549.6,3.92218387]
[1749152396248,18.28159736,2549.7,2549.6,3.92218387]
[1749152396561,18.28159736,2549.7,2549.6,19.92218387]
[1749152399449,19.48159736,2549.7,2549.6,19.92218387]
[1749152399652,1.2,2549.7,2549.6,19.92218387]
[1749152399959,8.919,2549.7,2549.6,19.92218387]
[1749152400671,8.917,2549.7,2549.6,19.92218387]
[1749152400870,19.47359736,2549.7,2549.6,19.92218387]
[1749152402132,20.82869736,2549.7,2549.6,19.92218387]
[1749152402334,19.47359736,2549.7,2549.6,19.92218387]
[1749152404450,9.467,2549.7,2549.6,19.92218387]
[1749152405180,1.75,2549.7,2549.6,19.92218387]
[1749152405361,9.461,2549.7,2549.6,19.92218387]
[1749152405557,1.2,2549.7,2549.6,23.6168337]
[1749152405868,8.91,2549.7,2549.6,19.92218387]
[1749152406697,1.2,2549.7,2549.6,19.92218387]
[1749152406988,1.2,2549.7,2549.6,21.28658387]
[1749152407283,8.908,2549.7,2549.6,21.28658387]
[1749152408681,8.905,2549.7,2549.6,21.28658387]
[1749152408877,8.905,2549.7,2549.6,23.8074737]
[1749152409872,8.905,2549.7,2549.6,21.28658387]
[1749152410251,8.905,2549.7,2549.6,5.28658387]
[1749152410590,8.905,2549.7,2549.6,21.28658387]
[1749152411190,8.901,2549.7,2549.6,21.28658387]
[1749152411585,8.901,2549.7,2549.6,19.92218387]
[1749152412375,1.2,2549.7,2549.6,19.92218387]
[1749152412575,8.899,2549.7,2549.6,19.92218387]
[1749152413804,20.34549736,2549.7,2549.6,19.92218387]
[1749152413956,0.55,2549.6,2549.1,0.02]
[1749152414152,10.55659736,2549.2,2549.1,3.94295135]
[1749152414489,20.6570571,2549.2,2549.1,3.94295135]
[1749152414690,8.246,2549.2,2549.1,19.94295135]
[1749152414853,8.246,2549.2,2549.1,0.02]
[1749152415059,8.246,2549.2,2549.1,3.94295319]
[1749152415566,8.246,2549.2,2549.1,19.94295319]
[1749152415755,8.244,2549.2,2549.1,19.94295319]
[1749152417194,1.24636766,2549.6,2549.5,19.92233771]
[1749152417509,9.84616307,2549.6,2549.5,19.92233771]
[1749152417657,8.93836766,2549.6,2549.5,19.92233771]
[1749152418001,9.84616166,2549.6,2549.5,19.92233771]
[1749152418306,9.84611882,2549.6,2549.5,3.92233771]
[1749152418800,9.84611185,2549.6,2549.4,3.92243047]
[1749152418976,10.00659736,2549.5,2549.4,3.92243047]
[1749152419697,0.55,2549.4,2549.3,19.92264543]
[1749152419995,1.3025,2549.3,2549.1,0.02]
[1749152420191,20.15159736,2549.2,2549.1,0.02]
[1749152420359,20.50921126,2549.2,2549.1,0.02]
[1749152420554,20.70159736,2549.2,2548.4,1.4242]
[1749152420867,0.9160103,2549.1,2549.0,3.9231071]
[1749152421190,10.55659736,2549.1,2548.5,3.92373084]
[1749152421378,10.55659736,2549.1,2548.1,1.4442]
[1749152421379,0.55,2548.6,2548.1,1.4442]
[1749152421551,0.55,2548.4,2548.3,3.92418475]
[1749152421757,0.55,2548.4,2548.3,19.92418475]
[1749152422088,0.55,2548.4,2548.1,1.4442]
[1749152422089,5.2545,2548.4,2548.1,0.02]
[1749152422294,0.55,2548.2,2548.1,3.9444338]
[1749152422493,1.4239,2548.4,2548.3,3.92418475]
[1749152422693,9.6599,2548.4,2548.3,3.92418475]
[1749152422911,8.236,2548.4,2548.3,3.92418475]
[1749152423114,18.24259736,2548.4,2548.3,3.92418475]
[1749152423314,0.55,2548.3,2548.2,3.92433874]
[1749152423513,0.55,2548.3,2548.2,16.0]
[1749152423816,0.55,2548.3,2548.2,3.92433874]
[1749152424010,2.49600691,2548.3,2548.2,3.92433874]
[1749152424317,1.8668,2548.2,2548.1,0.02]
[1749152424500,1.8668,2548.2,2548.1,3.94449275]
[1749152424702,3.81280691,2548.2,2548.1,0.02]
[1749152425615,3.81280691,2548.2,2548.1,3.94449275]
[1749152426317,3.81280691,2548.2,2548.1,0.02]
[1749152426636,9.62700691,2548.2,2548.1,19.94449275]
[1749152426980,1.94600691,2548.2,2548.1,19.94449275]
[1749152427316,1.94600691,2548.2,2548.1,22.33139665]
[1749152427518,9.62600691,2548.2,2548.1,22.33139665]
[1749152430222,1.94600691,2548.2,2548.1,19.94449275]
[1749152430445,9.62300691,2548.2,2548.1,19.94449275]
[1749152430943,9.62200691,2548.2,2548.1,19.94449275]
[1749152431144,9.62100691,2548.2,2548.1,19.94449275]
[1749152431719,1.94600691,2548.2,2548.1,23.73259665]
[1749152432124,9.62000691,2548.2,2548.1,23.73259665]
[1749152432758,9.62000691,2548.2,2548.1,21.34569275]
[1749152434809,9.62000691,2548.2,2548.1,19.94449275]
[1749152435549,19.62660427,2548.2,2548.1,3.94449275]
[1749152435750,19.62660427,2548.2,2548.1,19.94449275]
[1749152436253,21.51030427,2548.2,2548.1,0.02]
[1749152436456,21.51030427,2548.2,2548.1,3.94449275]
[1749152436750,9.61300691,2548.2,2548.1,19.94449275]
[1749152437120,1.94600691,2548.2,2548.1,19.94449275]
[1749152437340,9.61300691,2548.2,2548.1,19.94449275]
[1749152439058,1.94600691,2548.2,2548.1,21.34269275]
[1749152439259,1.94600691,2548.2,2548.1,23.86942385]
[1749152439460,9.61000691,2548.2,2548.1,23.86942385]
[1749152439665,1.94600691,2548.2,2548.1,23.86942385]
[1749152439864,9.60900691,2548.2,2548.1,23.86942385]
[1749152440268,1.94600691,2548.2,2548.1,23.86942385]
[1749152440467,2.457,2549.1,2549.0,3.9231071]
[1749152440765,10.119,2549.1,2549.0,19.9231071]
[1749152445048,10.669,2549.1,2549.0,19.9231071]
[1749152445251,10.119,2549.1,2549.0,19.9231071]
[1749152445681,2.457,2549.1,2549.0,19.9231071]
[1749152445880,1.24636766,2549.6,2549.5,3.92233771]
[1749152446188,1.24636766,2549.6,2549.5,19.92233771]
[1749152446391,8.89936766,2549.6,2549.5,19.92233771]
[1749152447395,20.71160179,2549.6,2549.5,19.92233771]
[1749152447599,22.10110179,2549.6,2549.5,19.92233771]
[1749152447779,12.09450443,2549.6,2549.5,19.92233771]
[1749152447951,22.10110179,2549.6,2549.5,19.92233771]
[1749152448158,3.18586766,2549.6,2549.5,19.92233771]
[1749152448357,8.89636766,2549.6,2549.5,19.92233771]
[1749152450395,1.24636766,2549.6,2549.5,19.92233771]
[1749152450575,8.89236766,2549.6,2549.5,19.92233771]
[1749152450897,1.24636766,2549.6,2549.5,19.92233771]
[1749152451195,1.24636766,2549.6,2549.5,22.43727945]
[1749152451365,8.89136766,2549.6,2549.5,22.43727945]
[1749152451699,1.24636766,2549.6,2549.5,22.43727945]
[1749152451999,8.88936766,2549.6,2549.5,23.85467945]
[1749152454725,1.24636766,2549.6,2549.5,23.85467945]
[1749152454911,8.88436766,2549.6,2549.5,23.85467945]
[1749152455117,1.24636766,2549.6,2549.5,23.85467945]
[1749152455419,8.88436766,2549.6,2549.5,23.85467945]
[1749152456244,8.88236766,2549.6,2549.5,23.85467945]
[1749152457149,1.24636766,2549.6,2549.5,23.85467945]
[1749152457365,8.88136766,2549.6,2549.5,23.85467945]
[1749152460040,8.88136766,2549.6,2549.5,19.92233771]
[1749152460241,8.88136766,2549.6,2549.5,3.92233771]
[1749152461035,8.88136766,2549.6,2549.5,19.92233771]
[1749152461565,1.24636766,2549.6,2549.5,19.92233771]
[1749152461764,8.87336766,2549.6,2549.5,21.25013771]
[1749152461943,8.87336766,2549.6,2549.5,23.76739945]
[1749152463545,1.24636766,2549.6,2549.5,23.76739945]
[1749152463989,8.87036766,2549.6,2549.5,23.76739945]
[1749152464829,7.624,2549.6,2549.5,23.76739945]
[1749152465535,1.2,2549.7,2549.6,19.92218387]
[1749152465884,2.425,2550.7,2550.6,3.92064612]
[1749152466087,10.045,2550.7,2550.6,19.92064612]
[1749152466580,2.425,2550.7,2550.6,19.92064612]
[1749152466962,0.02,2550.9,2550.8,3.92033871]
[1749152467133,7.638,2550.9,2550.8,19.92033871]
[1749152467848,7.637,2550.9,2550.8,24.06738347]
[1749152468157,7.637,2550.9,2550.8,19.92033871]
[1749152468356,9.0158,2550.9,2550.8,19.92033871]
[1749152469559,9.5658,2550.9,2550.8,19.92033871]
[1749152469759,9.5658,2550.9,2550.8,3.92033871]
[1749152470772,1.9488,2550.9,2550.8,3.92033871]
[1749152471068,9.5608,2550.9,2550.8,3.92033871]
[1749152471850,10.75938,2550.9,2550.8,3.92033871]
[1749152471981,0.55,2550.8,2549.9,1.4222]
[1749152472175,0.55,2550.5,2550.4,3.92095357]
[1749152472493,18.16659736,2550.5,2550.4,19.92095357]
[1749152472892,19.53259736,2550.5,2550.4,19.92095357]
[1749152473088,20.37585246,2550.5,2550.4,19.92095357]
[1749152473691,1.916,2550.5,2550.4,19.92095357]
[1749152473920,9.523,2550.5,2550.4,19.92095357]
[1749152474124,4.341,2550.7,2550.6,3.92064612]
[1749152474416,4.341,2550.7,2550.6,19.92064612]
[1749152474417,9.522,2550.7,2550.6,19.92064612]
[1749152474577,1.916,2550.7,2550.6,19.92064612]
[1749152474780,9.522,2550.7,2550.6,19.92064612]
[1749152475201,2.27249892,2550.7,2550.6,19.92064612]
[1749152475417,9.521,2550.7,2550.6,19.92064612]
[1749152475580,1.366,2550.7,2550.6,19.92064612]
[1749152475783,3.35095435,2550.9,2550.8,19.92033871]
[1749152476080,10.95495435,2550.9,2550.8,19.92033871]
[1749152476580,11.31153451,2550.9,2550.8,19.92033871]
[1749152476915,10.95495435,2550.9,2550.8,19.92033871]
[1749152477216,11.31166854,2550.9,2550.8,19.92033871]
[1749152477417,11.31166456,2550.9,2550.8,19.92033871]
[1749152477620,1.3974,2550.7,2549.2,1.3587]
[1749152477833,3.19229069,2550.7,2550.6,3.92053492]
[1749152477982,5.97401589,2550.7,2550.6,3.92053492]
[1749152478185,13.21829069,2550.7,2550.6,3.92053492]
[1749152478383,1.60159891,2550.7,2550.6,19.92053492]
[1749152478584,9.20183423,2550.7,2550.6,19.92053492]
[1749152478824,1.60183423,2550.7,2550.6,19.92053492]
[1749152479123,1.24489069,2550.7,2550.6,19.92053492]
[1749152479329,0.37595435,2550.9,2550.8,19.92033871]
[1749152479498,7.97495435,2550.9,2550.8,19.92033871]
[1749152479702,8.88199466,2550.9,2550.8,19.92033871]
[1749152479912,8.52495435,2550.9,2550.8,19.92033871]
[1749152480211,8.88104577,2550.9,2550.8,19.92033871]
[1749152480413,8.88140237,2550.9,2550.8,19.92033871]
[1749152480809,8.33041207,2550.9,2550.8,19.92033871]
[1749152481134,8.33041372,2550.9,2550.8,19.92033871]
[1749152481424,7.97295435,2550.9,2550.8,19.92033871]
[1749152481621,8.33040991,2550.9,2550.8,19.92033871]
[1749152481790,8.33041188,2550.9,2550.8,19.92033871]
[1749152482299,8.33041623,2550.9,2550.8,19.92033871]
[1749152482623,7.96995435,2550.9,2550.8,19.92033871]
[1749152482829,0.37595435,2550.9,2550.8,19.92033871]
[1749152483001,7.96895435,2550.9,2550.8,19.92033871]
[1749152483202,0.37595435,2550.9,2550.8,19.92033871]
[1749152483406,7.96895435,2550.9,2550.8,19.92033871]
[1749152483609,0.73341907,2550.9,2550.8,19.92033871]
[1749152483814,7.96795435,2550.9,2550.8,22.6964724]
[1749152484423,0.37595435,2550.9,2550.8,22.6964724]
[1749152484789,7.96695435,2550.9,2550.8,22.6964724]
[1749152485210,7.96695435,2550.9,2550.8,19.92033871]
[1749152485584,9.94115435,2550.9,2550.8,19.92033871]
[1749152485789,10.29871533,2550.9,2550.8,19.92033871]
[1749152486092,9.94115435,2550.9,2550.8,19.92033871]
[1749152486433,8.51395435,2550.9,2550.8,19.92033871]
[1749152486819,0.92595435,2550.9,2550.8,19.92033871]
[1749152487131,8.8705413,2550.9,2550.8,19.92033871]
[1749152487337,8.87054278,2550.9,2550.8,19.92033871]
[1749152487635,8.87054852,2550.9,2550.8,19.92033871]
[1749152487808,8.51295435,2550.9,2550.8,19.92033871]
[1749152488013,0.92595435,2550.9,2550.8,19.92033871]
[1749152488203,8.86962657,2550.9,2550.8,19.92033871]
[1749152488399,8.51195435,2550.9,2550.8,19.92033871]
[1749152488626,0.73363107,2550.9,2550.8,19.92033871]
[1749152488830,7.96095435,2550.9,2550.8,19.92033871]
[1749152489713,7.95895435,2550.9,2550.8,19.92033871]
[1749152489909,0.37595435,2550.9,2550.8,19.92033871]
[1749152490115,7.95895435,2550.9,2550.8,22.6964724]
[1749152490316,7.95895435,2550.9,2550.8,19.92033871]
[1749152490759,7.95795435,2550.9,2550.8,19.92033871]
[1749152491802,7.95595435,2550.9,2550.8,19.92033871]
[1749152492008,0.37595435,2550.9,2550.8,19.92033871]
[1749152492208,0.37595435,2550.9,2550.8,21.30573871]
[1749152492447,0.37595435,2550.9,2550.8,24.2204124]
[1749152492660,7.95495435,2550.9,2550.8,24.2204124]
[1749152493145,7.95395435,2550.9,2550.8,24.2204124]
[1749152494364,0.37595435,2550.9,2550.8,24.2204124]
[1749152494567,7.95095435,2550.9,2550.8,24.2204124]
[1749152496163,0.37595435,2550.9,2550.8,24.2204124]
[1749152497167,7.94695435,2550.9,2550.8,24.2204124]
[1749152499575,2.73109244,2551.3,2551.2,3.91972405]
[1749152499752,0.38451798,2551.3,2551.2,31.33542141]
[1749152499934,0.02,2551.9,2551.8,5.32790241]
[1749152500256,7.586,2551.9,2551.8,21.86069265]
[1749152501149,7.585,2551.9,2551.8,21.86069265]
[1749152501672,7.584,2551.9,2551.8,21.86069265]
[1749152502245,7.583,2551.9,2551.8,21.86069265]
[1749152503482,7.583,2551.9,2551.8,19.91880241]
[1749152505296,7.583,2551.9,2551.8,3.91880241]
[1749152505297,8.133,2551.9,2551.8,3.91880241]
[1749152505617,0.55,2551.6,2551.5,3.91926317]
[1749152505791,8.107,2551.6,2551.5,3.91926317]
[1749152505988,1.3656,2551.5,2550.6,3.920633]
[1749152506165,1.9156,2551.5,2551.4,3.91941679]
[1749152506479,9.4716,2551.5,2551.4,3.91941679]
[1749152506860,9.4716,2551.5,2551.4,19.91941679]
[1749152509405,19.47819736,2551.5,2551.4,16.0]
[1749152509705,19.47819736,2551.5,2551.4,19.91941679]
[1749152510403,9.4716,2551.5,2551.4,19.91941679]
[1749152510810,1.9156,2551.5,2551.4,19.91941679]
[1749152510976,8.9146,2551.5,2551.4,19.91941679]
[1749152511810,0.02,2551.9,2551.8,3.91880241]
[1749152512007,7.568,2551.9,2551.8,3.91880241]
[1749152512215,8.9922,2551.9,2551.8,19.91880241]
[1749152512396,9.5422,2551.9,2551.8,19.91880241]
[1749152512909,8.9922,2551.9,2551.8,19.91880241]
[1749152513146,9.5422,2551.9,2551.8,19.91880241]
[1749152513338,20.50301736,2551.9,2551.8,19.91880241]
[1749152514711,0.55,2551.8,2551.7,19.9189025]
[1749152515096,0.55,2551.8,2551.2,16.0]
[1749152515303,0.55,2551.6,2551.5,19.91926317]
[1749152515980,1.50172,2551.6,2551.5,19.91926317]
[1749152516175,11.50831736,2551.6,2551.5,19.91926317]
[1749152516394,1.50172,2551.6,2551.5,19.91926317]
[1749152516580,1.859735,2551.6,2551.5,19.91926317]
[1749152516781,3.86772,2551.6,2551.5,19.91926317]
[1749152517190,13.87431736,2551.6,2551.5,16.0]
[1749152517392,14.23234467,2551.6,2551.5,19.91926317]
[1749152518429,13.87431736,2551.6,2551.5,19.91926317]
[1749152518928,14.23245918,2551.6,2551.5,19.91926317]
[1749152519590,14.2325738,2551.6,2551.5,19.91926317]
[1749152519790,14.23257639,2551.6,2551.5,19.91926317]
[1749152520190,13.87431736,2551.6,2551.5,19.91926317]
[1749152520430,10.452,2551.6,2551.5,19.91926317]
[1749152520663,2.916,2551.6,2551.5,19.91926317]
[1749152520801,10.451,2551.6,2551.5,19.91926317]
[1749152521195,10.80946716,2551.6,2551.5,19.91926317]
[1749152521426,10.451,2551.6,2551.5,19.91926317]
[1749152521608,12.03283679,2551.6,2551.5,19.91926317]
[1749152521809,22.03943211,2551.6,2551.5,16.0]
[1749152522035,22.0394304,2551.6,2548.4,0.84997155]
[1749152522232,1.9217,2551.0,2550.2,5.34025424]
[1749152522456,10.55659736,2550.8,2550.7,3.92049241]
[1749152522632,11.37506528,2550.8,2550.7,3.92049241]
[1749152522948,0.55,2550.6,2550.4,3.92089584]
[1749152523175,0.55,2550.4,2550.3,3.92110732]
[1749152523316,0.55,2550.4,2550.3,19.92110732]
[1749152523651,0.55,2550.4,2550.3,3.92110732]
[1749152523818,0.55,2550.4,2550.3,19.92110732]
[1749152524013,1.24131027,2550.6,2550.5,3.92079984]
[1749152524228,9.32231027,2550.6,2550.5,19.92079984]
[1749152524759,9.68059046,2550.6,2550.5,19.92079984]
[1749152524920,10.78581951,2550.6,2550.5,19.92079984]
[1749152525754,10.42753932,2550.6,2550.5,19.92079984]
[1749152525914,11.62753932,2550.6,2550.5,19.92079984]
[1749152526652,11.62753932,2550.6,2550.5,16.0]
[1749152526872,0.55,2550.4,2550.3,3.92110732]
[1749152527074,18.08459736,2550.4,2550.3,19.92110732]
[1749152527283,19.02120342,2550.4,2550.3,16.0]
[1749152527563,19.02120342,2550.4,2550.0,3.92148448]
[1749152527564,0.55,2550.2,2550.0,3.92148448]
[1749152527768,19.90059736,2550.1,2550.0,3.92148448]
[1749152528500,19.90059736,2550.1,2549.8,3.92177998]
[1749152528501,1.9823,2550.0,2549.8,3.92177998]
[1749152528678,8.63122905,2549.9,2549.6,3.9220432]
[1749152528874,10.55659736,2549.7,2549.6,19.9220432]
[1749152529199,18.08159736,2549.7,2549.6,19.9220432]
[1749152529629,0.55,2549.5,2549.4,3.92249156]
[1749152529800,8.074,2549.5,2549.4,3.92249156]